bitfinex/quotes_BTCUSD_20250716
["timestamp","ask_amount","ask_price","bid_price","bid_amount"]
[1752664709482,0.89549466,118910.0,118900.0,0.01849]
[1752664710751,0.91179466,118910.0,118900.0,0.001]
[1752664711539,0.43679028,118910.0,118900.0,0.35001438]
[1752664711988,0.43679028,118910.0,118900.0,0.36561438]
[1752664712219,0.43679028,118910.0,118900.0,0.35001438]
[1752664712439,0.09151028,118910.0,118900.0,0.01879]
[1752664712668,0.006,118910.0,118900.0,0.69890876]
[1752664713138,0.006,118910.0,118900.0,0.69683876]
[1752664713801,0.006,118910.0,118900.0,0.36561438]
[1752664714679,0.006,118910.0,118900.0,0.14627]
[1752664714899,0.006,118910.0,118900.0,0.47749438]
[1752664715829,0.006,118910.0,118900.0,0.14627]
[1752664716046,0.0091,118910.0,118900.0,0.14627]
[1752664716706,0.006,118910.0,118900.0,0.47749438]
[1752664718368,0.006,118910.0,118900.0,0.49339438]
[1752664722281,0.006,118910.0,118900.0,0.47749438]
[1752664722496,0.006,118910.0,118900.0,0.14627]
[1752664722720,0.006,118910.0,118900.0,0.47749438]
[1752664728228,0.006,118910.0,118900.0,0.14627]
[1752664728446,0.006,118910.0,118900.0,0.47749438]
[1752664729130,0.006,118910.0,118900.0,0.49289438]
[1752664730139,0.006,118910.0,118900.0,0.47749438]
[1752664732389,0.02723,118910.0,118900.0,0.46177438]
[1752664736111,0.02723,118910.0,118900.0,0.13055]
[1752664736330,0.02723,118910.0,118900.0,0.46177438]
[1752664737814,0.02723,118910.0,118900.0,0.00299]
[1752664738046,0.79926466,118910.0,118900.0,0.001]
[1752664738276,1.25808904,118910.0,118900.0,0.001]
[1752664738507,1.35750449,118910.0,118900.0,0.001]
[1752664739200,1.37350449,118910.0,118900.0,0.001]
[1752664739453,1.38134805,118910.0,118900.0,0.001]
[1752664741139,1.16072909,118910.0,118900.0,0.001]
[1752664741817,0.0321,118890.0,118880.0,0.00308507]
[1752664742086,1.02704008,118890.0,118880.0,0.00308507]
[1752664742316,1.03207008,118890.0,118880.0,0.00308507]
[1752664746154,1.03407008,118890.0,118880.0,0.00408507]
[1752664750201,1.1623097,118890.0,118880.0,0.00408507]
[1752664750446,1.1875707,118890.0,118880.0,0.00408507]
[1752664751616,0.7457409,118890.0,118880.0,0.00408507]
[1752664751855,1.1875707,118890.0,118880.0,0.00408507]
[1752664754378,1.0174907,118890.0,118880.0,0.00408507]
[1752664754603,0.58580128,118890.0,118880.0,0.46323487]
[1752664754820,0.11277128,118890.0,118880.0,0.48140487]
[1752664755497,0.08751028,118890.0,118880.0,0.48140487]
[1752664758722,0.08751028,118890.0,118880.0,0.46323487]
[1752664758942,0.08751028,118890.0,118880.0,0.02140507]
[1752664761088,0.09047028,118890.0,118880.0,0.02140507]
[1752664763648,0.08751028,118890.0,118880.0,0.02140507]
[1752664764196,0.09047028,118890.0,118880.0,0.02140507]
[1752664770411,0.09047028,118890.0,118880.0,0.46323487]
[1752664772220,0.09262028,118890.0,118880.0,0.02140507]
[1752664776114,0.08751028,118890.0,118880.0,0.46323487]
[1752664776364,0.08751028,118890.0,118880.0,0.47933487]
[1752664776608,0.08751028,118890.0,118880.0,0.02140507]
[1752664776853,0.08751028,118890.0,118880.0,0.46323487]
[1752664778434,0.08751028,118890.0,118880.0,0.02140507]
[1752664778625,0.08751028,118890.0,118880.0,0.46323487]
[1752664780442,0.09073028,118890.0,118880.0,0.46323487]
[1752664781127,0.08751028,118890.0,118880.0,0.46323487]
[1752664781476,0.08751028,118890.0,118880.0,0.02140507]
[1752664781730,0.09073028,118890.0,118880.0,0.46323487]
[1752664783771,0.08751028,118890.0,118880.0,0.46323487]
[1752664783989,0.002,118890.0,118880.0,0.47913487]
[1752664785334,0.002,118890.0,118880.0,0.46323487]
[1752664786691,0.002,118890.0,118880.0,0.02140507]
[1752664786919,0.002,118890.0,118880.0,0.46323487]
[1752664792246,0.002,118890.0,118880.0,0.59111487]
[1752664792458,0.0175,118890.0,118880.0,0.57581487]
[1752664792663,0.02072,118890.0,118880.0,0.57581487]
[1752664792877,0.02072,118890.0,118880.0,0.13398507]
[1752664792878,0.10831028,118890.0,118880.0,0.13398507]
[1752664793617,0.10831028,118890.0,118880.0,0.00408507]
[1752664793820,0.12461028,118890.0,118880.0,0.13196507]
[1752664795189,0.12461028,118890.0,118880.0,0.00408507]
[1752664795408,0.56644008,118890.0,118880.0,0.00408507]
[1752664795672,0.69428008,118890.0,118880.0,0.00408507]
[1752664796550,0.25245028,118890.0,118880.0,0.00408507]
[1752664801219,0.69428008,118890.0,118880.0,0.00408507]
[1752664801653,0.25245028,118890.0,118880.0,0.00408507]
[1752664802617,0.23615028,118890.0,118880.0,0.00408507]
[1752664803905,0.25235028,118890.0,118880.0,0.00408507]
[1752664807686,0.23615028,118890.0,118880.0,0.00408507]
[1752664807910,0.22065028,118890.0,118880.0,0.00620507]
[1752664808366,0.23655028,118890.0,118880.0,0.00620507]
[1752664809017,0.23655028,118890.0,118880.0,0.00408507]
[1752664809258,0.25275028,118890.0,118880.0,0.00408507]
[1752664813551,0.69458008,118890.0,118880.0,0.00408507]
[1752664814747,0.25275028,118890.0,118880.0,0.00408507]
[1752664815646,0.23655028,118890.0,118880.0,0.00408507]
[1752664818923,0.22065028,118890.0,118880.0,0.00620507]
[1752664819147,0.21535028,118890.0,118880.0,0.46393487]
[1752664819373,0.002,118890.0,118880.0,0.60805487]
[1752664820637,0.10893028,118890.0,118880.0,0.00408507]
[1752664820877,0.23669028,118890.0,118880.0,0.00408507]
[1752664829738,0.22921028,118890.0,118880.0,0.00408507]
[1752664829950,0.23116028,118890.0,118880.0,0.00620507]
[1752664830168,0.10340028,118890.0,118880.0,0.00620507]
[1752664831713,0.10340028,118890.0,118870.0,0.57281987]
[1752664831937,0.10662079,118890.0,118870.0,0.57281987]
[1752664834387,0.10762079,118890.0,118870.0,0.57481987]
[1752664834951,0.10762079,118890.0,118880.0,0.00212]
[1752664836527,0.08620079,118890.0,118880.0,0.4777098]
[1752664836738,0.00105051,118890.0,118880.0,0.4626098]
[1752664837173,5.051e-05,118890.0,118880.0,0.4626098]
[1752664837578,0.00205051,118890.0,118880.0,0.4636098]
[1752664838007,0.00205051,118890.0,118880.0,0.4479098]
[1752664838693,0.00205051,118890.0,118880.0,0.4449498]
[1752664838921,0.01931051,118890.0,118880.0,0.4449498]
[1752664839348,0.01931051,118890.0,118880.0,0.00312]
[1752664839998,0.02255051,118890.0,118880.0,0.00312]
[1752664845402,0.03865051,118890.0,118880.0,0.001]
[1752664845766,0.12416079,118890.0,118880.0,0.001]
[1752664849333,0.56599059,118890.0,118880.0,0.001]
[1752664849779,0.59124959,118890.0,118880.0,0.001]
[1752664856675,0.93124959,118890.0,118880.0,0.001]
[1752664863662,0.3717,118880.0,118860.0,0.003]
[1752664863874,0.21323028,118870.0,118860.0,0.003]
[1752664864152,0.21323028,118870.0,118860.0,0.00505]
[1752664864969,0.21323028,118870.0,118860.0,0.00705]
[1752664865342,0.21519028,118870.0,118860.0,0.00505]
[1752664865551,0.21619028,118870.0,118860.0,0.00805]
[1752664866212,0.23563028,118870.0,118860.0,0.006]
[1752664867128,0.24421157,118870.0,118860.0,0.006]
[1752664867336,0.23563028,118870.0,118860.0,0.006]
[1752664868216,0.23593028,118870.0,118860.0,0.006]
[1752664868861,0.25173028,118870.0,118860.0,0.006]
[1752664872172,0.23593028,118870.0,118860.0,0.006]
[1752664873043,0.23593028,118870.0,118860.0,0.00797]
[1752664873264,0.21943028,118870.0,118860.0,0.00797]
[1752664875945,0.21619028,118870.0,118860.0,0.00797]
[1752664876802,0.21919028,118870.0,118860.0,0.00797]
[1752664877690,0.09147028,118870.0,118860.0,0.00797]
[1752664877922,0.001,118870.0,118860.0,0.6121398]
[1752664878167,0.001,118870.0,118860.0,0.6196598]
[1752664881571,0.001,118870.0,118860.0,0.62812809]
[1752664885842,0.001,118870.0,118860.0,0.71363837]
[1752664907103,0.001,118870.0,118860.0,0.93427417]
[1752664908380,0.001,118870.0,118860.0,0.91837417]
[1752664909668,0.001,118870.0,118860.0,0.93457417]
[1752664910126,0.001,118870.0,118860.0,0.91837417]
[1752664910909,0.001,118870.0,118860.0,0.93427417]
[1752664911304,0.001,118870.0,118860.0,0.91837417]
[1752664911787,0.001,118870.0,118860.0,0.93457417]
[1752664914939,0.001,118870.0,118860.0,1.26580697]
[1752664915143,0.001,118870.0,118860.0,1.24960697]
[1752664915355,0.001,118870.0,118860.0,0.91837417]
[1752664915778,0.001,118870.0,118860.0,0.93457417]
[1752664918508,0.001,118870.0,118860.0,0.90277417]
[1752664928936,0.001,118870.0,118860.0,1.23400697]
[1752664929142,0.001,118870.0,118860.0,0.90277417]
[1752664929551,0.001,118870.0,118860.0,1.23400697]
[1752664929762,0.001,118870.0,118860.0,0.90277417]
[1752664931310,0.001,118870.0,118860.0,0.24030857]
[1752664931530,0.001,118870.0,118860.0,0.90277417]
[1752664932370,0.001,118870.0,118860.0,0.89430588]
[1752664940287,0.001,118870.0,118860.0,1.22553868]
[1752664940758,0.001,118870.0,118860.0,1.56553868]
[1752664941024,0.001,118870.0,118860.0,1.23430588]
[1752664942373,0.001,118870.0,118860.0,1.24940588]
[1752664943510,0.001,118870.0,118860.0,1.25767037]
[1752664944463,0.001,118870.0,118860.0,1.24257037]
[1752664946581,0.001,118870.0,118860.0,1.57380317]
[1752664946807,0.001,118870.0,118860.0,1.24257037]
[1752664950003,0.0163,118870.0,118860.0,1.24257037]
[1752664950416,0.0163,118870.0,118860.0,1.23949037]
[1752664950617,0.0314,118870.0,118860.0,1.23949037]
[1752664950817,0.0314,118870.0,118860.0,0.57702477]
[1752664951019,0.0314,118870.0,118860.0,1.23949037]
[1752664952658,0.0163,118870.0,118860.0,1.24267037]
[1752664952863,0.0163,118870.0,118860.0,1.24251037]
[1752664953107,0.0163,118870.0,118860.0,0.58004477]
[1752664953338,0.0163,118870.0,118860.0,1.24251037]
[1752664953549,0.0163,118870.0,118860.0,1.23933037]
[1752664956212,0.03762,118870.0,118860.0,1.0104356]
[1752664956431,0.0459806,118870.0,118860.0,0.35352]
[1752664956639,0.3772134,118870.0,118860.0,0.1336]
[1752664956842,0.0459806,118870.0,118860.0,0.1336]
[1752664957044,0.0459806,118870.0,118860.0,0.14112]
[1752664957383,0.0459806,118870.0,118860.0,0.4648328]
[1752664957586,0.0459806,118870.0,118860.0,0.4723528]
[1752664957792,0.0459806,118870.0,118860.0,0.14112]
[1752664957967,0.0459806,118870.0,118860.0,0.4723528]
[1752664958587,0.0459806,118870.0,118860.0,0.3447528]
[1752664958795,0.0459806,118870.0,118860.0,0.4648328]
[1752664958998,0.0459806,118870.0,118860.0,0.4723528]
[1752664962716,0.0459806,118870.0,118860.0,0.8035856]
[1752664964986,0.03762,118870.0,118860.0,0.8035856]
[1752664965712,0.03762,118870.0,118860.0,0.8056256]
[1752664967729,0.03762,118870.0,118860.0,0.8035856]
[1752664976661,0.03762,118870.0,118860.0,0.8056256]
[1752664978415,0.03467,118870.0,118860.0,0.8056256]
[1752664980063,0.0377,118870.0,118860.0,0.8056256]
[1752664983296,0.0377,118870.0,118860.0,0.14316]
[1752664983557,0.0377,118870.0,118860.0,0.8056256]
[1752664987738,0.03467,118870.0,118860.0,0.8056256]
[1752664987944,0.001,118870.0,118860.0,1.1562684]
[1752664988832,0.001,118870.0,118860.0,1.1714684]
[1752664991884,0.001,118870.0,118860.0,1.1562684]
[1752664992099,0.001,118870.0,118860.0,1.1398684]
[1752664995869,0.001,118870.0,118860.0,1.25717868]
[1752664997448,0.001,118870.0,118860.0,1.59717868]
[1752665000658,0.001,118870.0,118860.0,1.58117868]
[1752665001366,0.001,118870.0,118860.0,1.59697868]
[1752665004484,0.001,118870.0,118860.0,1.58117868]
[1752665007445,0.001,118870.0,118860.0,1.56537868]
[1752665026212,0.001,118870.0,118860.0,1.55789868]
[1752665026801,0.001,118870.0,118860.0,1.22666588]
[1752665029313,0.001,118870.0,118860.0,1.09906588]
[1752665029520,0.001,118870.0,118860.0,1.22658588]
[1752665029736,0.0164,118870.0,118860.0,1.22658588]
[1752665036632,0.0164,118870.0,118860.0,1.55781868]
[1752665036846,0.0164,118870.0,118860.0,1.22658588]
[1752665057915,0.001,118870.0,118860.0,2.58431708]
[1752665058130,0.001,118870.0,118860.0,3.05505168]
[1752665058340,0.001,118870.0,118860.0,4.34660808]
[1752665058749,0.001,118870.0,118860.0,4.23944608]
[1752665058957,0.00305051,118890.0,118870.0,0.34]
[1752665059164,0.00305051,118890.0,118880.0,1.24373164]
[1752665059453,0.00305051,118890.0,118880.0,1.24162868]
[1752665059864,0.00305051,118890.0,118880.0,1.24470868]
[1752665060008,0.00405051,118890.0,118880.0,1.25074868]
[1752665060217,0.00305051,118890.0,118880.0,1.25074868]
[1752665060418,0.00305051,118890.0,118880.0,1.25899542]
[1752665060782,0.00405051,118890.0,118880.0,1.26199542]
[1752665062382,0.00405051,118890.0,118880.0,1.25374868]
[1752665063822,0.00405051,118890.0,118880.0,1.23724868]
[1752665064055,0.02065051,118890.0,118880.0,0.09977028]
[1752665064267,0.03565051,118890.0,118880.0,0.55540308]
[1752665064476,0.03565051,118890.0,118880.0,0.75915588]
[1752665064684,0.03565051,118890.0,118880.0,0.88719588]
[1752665066354,0.03565051,118890.0,118880.0,0.88505588]
[1752665068953,0.03565051,118890.0,118880.0,0.003]
[1752665069213,0.03565051,118890.0,118880.0,0.13708]
[1752665069434,0.36688331,118890.0,118880.0,0.13104]
[1752665069844,0.03565051,118890.0,118880.0,0.13104]
[1752665071842,0.03565051,118890.0,118880.0,0.4622728]
[1752665072954,0.03565051,118890.0,118880.0,0.1312]
[1752665074010,0.03465051,118890.0,118880.0,0.1282]
[1752665074305,0.03565051,118890.0,118880.0,0.1302]
[1752665075734,0.03565051,118890.0,118880.0,0.571845]
[1752665076595,0.03565051,118890.0,118880.0,0.577885]
[1752665082718,0.02065051,118890.0,118880.0,0.577885]
[1752665083266,0.02065051,118890.0,118880.0,0.577294]
[1752665084526,0.03675051,118890.0,118880.0,0.577294]
[1752665085422,0.03675051,118890.0,118880.0,0.13624]
[1752665086147,0.03675051,118890.0,118880.0,0.00804]
[1752665086375,0.03675051,118890.0,118880.0,0.13628]
[1752665087692,0.03675051,118890.0,118880.0,0.13024]
[1752665089569,0.03675051,118890.0,118880.0,0.13628]
[1752665090902,0.03675051,118890.0,118880.0,0.13024]
[1752665091151,0.03675051,118890.0,118880.0,0.1302]
[1752665096236,0.02065051,118890.0,118880.0,1.02163296]
[1752665096444,0.00405051,118890.0,118880.0,1.47674028]
[1752665096652,0.00405051,118890.0,118880.0,1.87434028]
[1752665096866,0.003,118910.0,118900.0,0.03784]
[1752665097066,0.00305053,118910.0,118900.0,1.57889789]
[1752665097281,0.00305053,118910.0,118900.0,1.11391829]
[1752665098690,0.00305053,118910.0,118900.0,1.04527528]
[1752665098865,0.00305053,118910.0,118900.0,0.91691528]
[1752665099068,0.00305053,118910.0,118900.0,0.89531528]
[1752665099408,0.00305053,118910.0,118900.0,0.87961528]
[1752665099870,0.00405053,118910.0,118900.0,0.88361528]
[1752665106962,0.00405053,118910.0,118900.0,0.29747028]
[1752665107213,0.02045053,118910.0,118900.0,0.73911528]
[1752665107413,0.02045053,118910.0,118900.0,0.86739528]
[1752665108042,0.02045053,118910.0,118900.0,1.20739528]
[1752665109916,0.02045053,118910.0,118900.0,1.07911528]
[1752665110130,0.02045053,118910.0,118900.0,1.20735528]
[1752665110994,0.02045053,118910.0,118900.0,1.20131528]
[1752665111178,0.02045053,118910.0,118900.0,1.20735528]
[1752665112882,0.00405053,118910.0,118900.0,1.20735528]
[1752665113093,0.00385053,118910.0,118900.0,1.20735528]
[1752665113689,0.00385053,118910.0,118900.0,1.20715528]
[1752665114516,0.00385053,118910.0,118900.0,1.23895528]
[1752665114716,0.00385053,118910.0,118900.0,1.68060028]
[1752665114940,0.00385053,118910.0,118900.0,1.23895528]
[1752665117604,0.00385053,118910.0,118900.0,1.38895528]
[1752665117830,0.00365053,118910.0,118900.0,1.38895528]
[1752665118067,0.00365053,118910.0,118900.0,1.83060028]
[1752665118292,0.00345053,118910.0,118900.0,1.83060028]
[1752665118917,0.00345053,118910.0,118900.0,1.38895528]
[1752665119149,0.00345053,118910.0,118900.0,1.38875528]
[1752665119355,0.00345053,118910.0,118900.0,1.68615528]
[1752665119553,0.00345053,118910.0,118900.0,2.12780028]
[1752665119767,0.00325053,118910.0,118900.0,1.68615528]
[1752665119968,0.00325053,118910.0,118900.0,2.12780028]
[1752665120174,0.00325053,118910.0,118900.0,1.68615528]
[1752665120400,0.00305053,118910.0,118900.0,1.68615528]
[1752665120884,0.00305053,118910.0,118900.0,2.12760028]
[1752665121330,0.00305053,118910.0,118900.0,2.12740028]
[1752665121754,0.00285053,118910.0,118900.0,2.12740028]
[1752665122611,0.00285053,118910.0,118900.0,2.12720028]
[1752665126829,0.00265053,118910.0,118900.0,2.12720028]
[1752665127460,0.00265053,118910.0,118900.0,3.17595928]
[1752665127890,0.00265053,118910.0,118900.0,3.19225928]
[1752665130944,0.00265053,118910.0,118900.0,3.28081928]
[1752665133145,0.00265053,118910.0,118900.0,3.30572613]
[1752665136502,0.003,118930.0,118920.0,0.49]
[1752665136711,0.00305053,118930.0,118920.0,1.60278028]
[1752665138401,0.00305053,118930.0,118920.0,1.58708028]
[1752665139410,0.00305053,118930.0,118920.0,1.59312028]
[1752665139633,0.00305053,118930.0,118920.0,1.60146387]
[1752665139840,0.00305053,118930.0,118920.0,1.91416387]
[1752665140248,0.00305053,118930.0,118920.0,1.89886387]
[1752665140454,0.01925053,118930.0,118920.0,1.89886387]
[1752665140856,0.03475053,118930.0,118920.0,0.35438359]
[1752665141152,0.47639553,118930.0,118900.0,0.02490685]
[1752665141391,0.0317,118920.0,118910.0,0.13432]
[1752665142757,0.0317,118920.0,118910.0,0.57806743]
[1752665143022,0.0317,118920.0,118910.0,0.575965]
[1752665143763,0.0327,118920.0,118910.0,0.578965]
[1752665145947,0.0327,118920.0,118910.0,0.450685]
[1752665146142,0.0327,118920.0,118910.0,0.578925]
[1752665147022,0.0327,118920.0,118910.0,0.13728]
[1752665148827,0.0327,118920.0,118910.0,0.578925]
[1752665150760,0.0327,118920.0,118910.0,0.13728]
[1752665154670,0.0327,118920.0,118910.0,0.578925]
[1752665156241,0.0327,118920.0,118910.0,0.13728]
[1752665156444,0.0327,118920.0,118910.0,0.578925]
[1752665163749,0.0327,118920.0,118910.0,0.578725]
[1752665167552,0.0327,118920.0,118910.0,0.450685]
[1752665167739,0.0327,118920.0,118910.0,0.578725]
[1752665168287,0.0327,118920.0,118910.0,0.13708]
[1752665168509,0.0327,118920.0,118910.0,0.13918243]
[1752665168734,0.0327,118920.0,118910.0,0.578725]
[1752665169170,0.0327,118920.0,118910.0,0.628725]
[1752665170690,0.0327,118920.0,118910.0,0.18708]
[1752665170904,0.0327,118920.0,118910.0,0.628725]
[1752665171643,0.0327,118920.0,118910.0,0.18708]
[1752665171853,0.0327,118920.0,118910.0,0.628725]
[1752665174822,0.0327,118920.0,118910.0,0.500685]
[1752665175039,0.0327,118920.0,118910.0,0.628885]
[1752665181219,0.03482,118920.0,118910.0,0.628885]
[1752665181766,0.03482,118920.0,118910.0,0.630855]
[1752665182152,0.03783,118920.0,118910.0,0.630855]
[1752665183480,0.03783,118920.0,118910.0,0.630658]
[1752665187728,0.03482,118920.0,118910.0,0.630658]
[1752665188575,0.001,118920.0,118910.0,1.19301328]
[1752665188778,0.001,118920.0,118910.0,1.53301328]
[1752665189731,0.001,118920.0,118910.0,1.09136828]
[1752665190137,0.001,118920.0,118910.0,1.07526828]
[1752665197530,0.001,118920.0,118910.0,1.09146828]
[1752665197942,0.001,118920.0,118910.0,1.53311328]
[1752665198155,0.001,118920.0,118910.0,1.09146828]
[1752665198389,0.001,118920.0,118910.0,1.53311328]
[1752665200259,0.001,118920.0,118910.0,1.09146828]
[1752665204190,0.001,118920.0,118910.0,1.07526828]
[1752665205218,0.001,118920.0,118910.0,1.05916828]
[1752665205775,0.001,118920.0,118910.0,1.07516828]
[1752665207541,0.001,118920.0,118910.0,1.05916828]
[1752665208165,0.001,118920.0,118910.0,1.05892828]
[1752665208368,0.0176,118920.0,118910.0,1.05892828]
[1752665209050,0.02273,118920.0,118910.0,0.92599828]
[1752665209263,0.03833,118920.0,118910.0,1.05391828]
[1752665209671,0.03833,118920.0,118910.0,1.05588828]
[1752665210313,0.03532,118920.0,118910.0,1.05588828]
[1752665212323,0.0332,118920.0,118910.0,1.05893828]
[1752665212524,0.0332,118920.0,118910.0,1.05588828]
[1752665216862,0.0332,118920.0,118910.0,1.05893828]
[1752665216984,0.0332,118920.0,118910.0,1.05588828]
[1752665217195,0.001,118920.0,118910.0,1.05893828]
[1752665218869,0.0172,118920.0,118910.0,1.05893828]
[1752665219686,0.001,118920.0,118910.0,1.05893828]
[1752665220097,0.001,118920.0,118910.0,1.50058328]
[1752665220460,0.00307,118920.0,118910.0,1.05586828]
[1752665220663,0.00621,118920.0,118910.0,1.05391828]
[1752665220867,0.001,118920.0,118910.0,1.05891828]
[1752665221114,0.001,118920.0,118910.0,1.50056328]
[1752665223859,0.017,118920.0,118910.0,1.50056328]
[1752665224076,0.017,118920.0,118910.0,1.05891828]
[1752665224931,0.03407,118920.0,118910.0,1.05586828]
[1752665225137,0.03721,118920.0,118910.0,1.26828306]
[1752665225355,0.03721,118920.0,118910.0,1.18861578]
[1752665227048,0.03721,118920.0,118910.0,0.96804597]
[1752665228249,0.03721,118920.0,118910.0,0.96999597]
[1752665230499,0.032,118920.0,118910.0,0.96999597]
[1752665233201,0.032,118920.0,118910.0,0.97304597]
[1752665233619,0.032,118920.0,118910.0,0.96999597]
[1752665234257,0.032,118920.0,118910.0,0.97304597]
[1752665235829,0.001,118920.0,118910.0,1.41432894]
[1752665237067,0.0171,118920.0,118910.0,1.41432894]
[1752665238287,0.001,118920.0,118910.0,0.531763]
[1752665238492,0.001,118920.0,118910.0,1.42992894]
[1752665238674,0.001,118920.0,118910.0,1.41432894]
[1752665239851,0.001,118920.0,118910.0,0.97304597]
[1752665240081,0.0173,118920.0,118910.0,0.97304597]
[1752665244363,0.001,118920.0,118910.0,0.97304597]
[1752665245520,0.001,118920.0,118910.0,0.61727328]
[1752665245731,0.001,118920.0,118910.0,1.05855625]
[1752665247019,0.001,118920.0,118910.0,1.2790853]
[1752665248840,0.0164,118920.0,118910.0,0.61727328]
[1752665249060,0.0164,118920.0,118910.0,1.2790853]
[1752665254207,0.001,118920.0,118910.0,1.60999131]
[1752665254453,0.001,118920.0,118910.0,1.2790853]
[1752665263282,0.001,118920.0,118910.0,1.2944853]
[1752665263490,0.001,118920.0,118910.0,1.3104853]
[1752665263798,0.001,118920.0,118910.0,1.64139131]
[1752665264019,0.001,118920.0,118910.0,1.62539131]
[1752665265244,0.001,118920.0,118910.0,1.64079131]
[1752665267267,0.001,118920.0,118910.0,1.93819131]
[1752665268573,0.001,118920.0,118910.0,1.93839131]
[1752665269203,0.001,118920.0,118910.0,2.62706031]
[1752665269335,0.001,118920.0,118910.0,2.32966031]
[1752665269763,0.001,118920.0,118910.0,2.33302531]
[1752665273122,0.001,118920.0,118910.0,2.63042531]
[1752665273455,0.001,118920.0,118910.0,1.63770728]
[1752665273784,0.001,118920.0,118910.0,3.09046331]
[1752665273997,0.001,118920.0,118910.0,3.19537731]
[1752665275894,0.001,118920.0,118910.0,3.18370031]
[1752665278982,0.001,118920.0,118910.0,3.07868231]
[1752665279918,0.001,118920.0,118910.0,3.28048231]
[1752665282981,0.001,118920.0,118910.0,3.27046631]
[1752665289955,0.001,118920.0,118910.0,4.26448434]
[1752665291197,0.00305053,118930.0,118910.0,4.26148434]
[1752665291399,0.00305053,118930.0,118920.0,2.19997159]
[1752665291565,0.00305053,118930.0,118920.0,2.20301934]
[1752665292839,0.00405053,118930.0,118920.0,2.20401934]
[1752665293062,0.00405053,118930.0,118920.0,3.87760034]
[1752665293710,0.00405053,118930.0,118920.0,3.90283334]
[1752665294355,0.00305053,118930.0,118920.0,3.90183334]
[1752665294565,0.00405053,118930.0,118920.0,3.90483334]
[1752665296332,0.00405053,118930.0,118920.0,3.00067531]
[1752665302669,0.00405053,118930.0,118920.0,2.98487531]
[1752665303078,0.00405053,118930.0,118920.0,4.64474031]
[1752665306253,0.00405053,118930.0,118920.0,4.61294031]
[1752665306487,0.03828053,118930.0,118920.0,0.75903628]
[1752665306723,0.04142053,118930.0,118920.0,1.5220453]
[1752665307012,0.04142053,118930.0,118920.0,0.73175328]
[1752665307224,0.37232654,118930.0,118920.0,0.008843]
[1752665307436,0.37232654,118930.0,118920.0,0.137403]
[1752665307863,0.04142053,118930.0,118920.0,0.137403]
[1752665308081,0.04142053,118930.0,118920.0,0.008843]
[1752665308333,0.04042053,118930.0,118920.0,0.134363]
[1752665308728,0.04142053,118930.0,118920.0,0.135363]
[1752665310018,0.04042053,118930.0,118920.0,0.134363]
[1752665310871,0.04142053,118930.0,118920.0,0.136363]
[1752665311254,0.04142053,118930.0,118920.0,0.57771621]
[1752665313772,0.04142053,118930.0,118920.0,0.136363]
[1752665316310,0.04142053,118930.0,118920.0,0.57771621]
[1752665317684,0.04142053,118930.0,118920.0,0.136363]
[1752665317893,0.04142053,118930.0,118920.0,0.57771621]
[1752665322432,0.04142053,118930.0,118920.0,0.136363]
[1752665323927,0.04142053,118930.0,118920.0,0.007843]
[1752665324141,0.04142053,118930.0,118920.0,0.136883]
[1752665327055,0.04142053,118930.0,118920.0,0.13898525]
[1752665327286,0.04142053,118930.0,118920.0,0.136883]
[1752665328835,0.04142053,118930.0,118920.0,0.13898525]
[1752665330201,0.04142053,118930.0,118920.0,0.14720931]
[1752665333163,0.04142053,118930.0,118920.0,0.14510706]
[1752665333367,0.04142053,118930.0,118920.0,0.58856252]
[1752665333573,0.04142053,118930.0,118920.0,0.58646027]
[1752665336737,0.04142053,118930.0,118920.0,0.14510706]
[1752665336963,0.04142053,118930.0,118920.0,0.58856252]
[1752665337192,0.04142053,118930.0,118920.0,0.58646027]
[1752665337623,0.04142053,118930.0,118920.0,0.57823621]
[1752665340173,0.04142053,118930.0,118920.0,0.58655487]
[1752665342280,0.04142053,118930.0,118920.0,0.14520166]
[1752665342515,0.04142053,118930.0,118920.0,0.14730391]
[1752665342708,0.04142053,118930.0,118920.0,0.58865712]
[1752665342924,0.04142053,118930.0,118920.0,0.58655487]
[1752665344570,0.04142053,118930.0,118920.0,0.58852487]
[1752665345130,0.04142053,118930.0,118920.0,0.80905156]
[1752665345756,0.04142053,118930.0,118920.0,0.47811161]
[1752665346165,0.03615053,118930.0,118920.0,0.56655189]
[1752665346371,0.03615053,118930.0,118920.0,0.89749184]
[1752665346585,0.03615053,118930.0,118920.0,0.89456184]
[1752665347965,0.03821053,118930.0,118920.0,0.89456184]
[1752665349660,0.03821053,118930.0,118920.0,0.23268194]
[1752665349866,0.03615053,118930.0,118920.0,0.89456184]
[1752665350070,0.02065053,118930.0,118920.0,0.89749184]
[1752665350278,0.00405053,118930.0,118920.0,0.89749184]
[1752665350484,0.00405053,118930.0,118920.0,0.23561194]
[1752665350665,0.01985053,118930.0,118920.0,0.89749184]
[1752665352532,0.00405053,118930.0,118920.0,0.89749184]
[1752665353279,0.00405053,118930.0,118920.0,1.92289668]
[1752665353904,0.00405053,118930.0,118920.0,1.77549668]
[1752665354118,0.00405053,118930.0,118920.0,4.39104553]
[1752665354341,0.00405053,118930.0,118920.0,3.39822568]
[1752665354548,0.00405053,118930.0,118920.0,3.11798068]
[1752665354753,0.00405053,118930.0,118920.0,2.96393068]
[1752665355162,0.00305053,118930.0,118920.0,2.85117015]
[1752665356728,0.00305053,118930.0,118920.0,2.81125615]
[1752665356955,0.00305053,118930.0,118920.0,2.71894615]
[1752665358065,0.00305053,118930.0,118920.0,2.29873915]
[1752665358308,0.00305053,118930.0,118920.0,2.18306915]
[1752665358750,0.00305053,118930.0,118920.0,2.18506915]
[1752665358977,0.00405053,118930.0,118920.0,2.18506915]
[1752665359950,0.00405053,118930.0,118920.0,2.08015715]
[1752665370391,0.00405053,118930.0,118920.0,1.19809783]
[1752665370589,0.00405053,118930.0,118920.0,2.08015715]
[1752665371627,0.00405053,118930.0,118920.0,2.16866715]
[1752665377089,0.00405053,118930.0,118920.0,2.27897294]
[1752665377895,0.00405053,118930.0,118920.0,2.16095194]
[1752665378136,0.00405053,118930.0,118920.0,4.21890094]
[1752665382810,0.00405053,118930.0,118920.0,4.42066094]
[1752665385004,0.00405053,118930.0,118920.0,4.40536094]
[1752665385356,0.00405053,118930.0,118920.0,4.42086094]
[1752665386415,0.00405053,118930.0,118920.0,4.09007257]
[1752665386623,0.00405053,118930.0,118920.0,3.61447757]
[1752665386979,0.00405053,118930.0,118920.0,3.59037757]